[Event "Titled Tuesday Blitz February 21 Late 2023"]
[White "Comas Fabrego, Lluis"]
[Black "Davidson, Kevin"]
[WhiteFideId "2200325"]
[BlackFideId "2056810"]
[WhiteElo "2424"]
[BlackElo "2154"]
[Result "1-0"]
[Round "05"]
[TimeControl "180+2"]
[Date "2023.02.21"]
[WhiteClock "0:00:28"]
[BlackClock "0:00:01"]

1. Nf3 {[%clk 0:03:00]}  Nf6 {[%clk 0:02:59]} 2. c4 {[%clk 0:02:59]}  g6 {[%clk 0:03:00]} 3. g3 {[%clk 0:02:59]}  Bg7 {[%clk 0:03:00]} 4. Bg2 {[%clk 0:02:59]}  O-O {[%clk 0:03:00]} 5. O-O {[%clk 0:03:00]}  d6 {[%clk 0:02:59]} 6. d4 {[%clk 0:03:00]}  Nbd7 {[%clk 0:02:59]} 7. Nc3 {[%clk 0:03:00]}  e5 {[%clk 0:02:59]} 8. h3 {[%clk 0:03:00]}  c6 {[%clk 0:02:59]} 9. e4 {[%clk 0:03:00]}  Qb6 {[%clk 0:02:59]} 10. dxe5 {[%clk 0:02:59]}  dxe5 {[%clk 0:02:59]} 11. b3 {[%clk 0:03:00]}  Qb4 {[%clk 0:02:56]} 12. Qc2 {[%clk 0:02:47]}  a5 {[%clk 0:02:46]} 13. a4 {[%clk 0:02:43]}  Qe7 {[%clk 0:02:45]} 14. Ba3 {[%clk 0:02:42]}  Nc5 {[%clk 0:02:45]} 15. Ne1 {[%clk 0:02:23]}  Nfd7 {[%clk 0:02:38]} 16. Nd3 {[%clk 0:02:22]}  Re8 {[%clk 0:02:38]} 17. Rab1 {[%clk 0:02:10]}  Bf8 {[%clk 0:02:38]} 18. Nxc5 {[%clk 0:02:05]}  Nxc5 {[%clk 0:02:35]} 19. Nd1 {[%clk 0:01:52]}  Qg5 {[%clk 0:02:04]} 20. Bb2 {[%clk 0:01:28]}  Ne6 {[%clk 0:01:54]} 21. Bc3 {[%clk 0:01:22]}  Nd4 {[%clk 0:01:44]} 22. Bxd4 {[%clk 0:01:22]}  exd4 {[%clk 0:01:45]} 23. Nb2 {[%clk 0:01:22]}  c5 {[%clk 0:01:32]} 24. Nd3 {[%clk 0:01:22]}  Bd7 {[%clk 0:01:18]} 25. Kh2 {[%clk 0:01:21]}  Bc6 {[%clk 0:01:17]} 26. f4 {[%clk 0:01:20]}  Qd8 {[%clk 0:00:59]} 27. Ne5 {[%clk 0:01:18]}  Bd7 {[%clk 0:00:38]} 28. Nxd7 {[%clk 0:01:16]}  Qxd7 {[%clk 0:00:38]} 29. e5 {[%clk 0:01:17]}  d3 {[%clk 0:00:24]} 30. Rbd1 {[%clk 0:01:06]}  dxc2 {[%clk 0:00:13]} 31. Rxd7 {[%clk 0:01:05]}  Rad8 {[%clk 0:00:13]} 32. Rxd8 {[%clk 0:00:53]}  Rxd8 {[%clk 0:00:14]} 33. Rc1 {[%clk 0:00:49]}  Rd2 {[%clk 0:00:14]} 34. Kg1 {[%clk 0:00:46]}  b6 {[%clk 0:00:12]} 35. Be4 {[%clk 0:00:46]}  h5 {[%clk 0:00:07]} 36. Rxc2 {[%clk 0:00:44]}  Rd1+ {[%clk 0:00:07]} 37. Kf2 {[%clk 0:00:43]}  Rb1 {[%clk 0:00:07]} 38. Rc3 {[%clk 0:00:42]}  Rb2+ {[%clk 0:00:06]} 39. Bc2 {[%clk 0:00:38]}  Kg7 {[%clk 0:00:05]} 40. Ke2 {[%clk 0:00:37]}  f6 {[%clk 0:00:05]} 41. e6 {[%clk 0:00:34]}  f5 {[%clk 0:00:04]} 42. Kd2 {[%clk 0:00:33]}  Ra2 {[%clk 0:00:04]} 43. Rd3 {[%clk 0:00:32]}  Kf6 {[%clk 0:00:03]} 44. Rd8 {[%clk 0:00:30]}  Ke7 {[%clk 0:00:01]} 45. Rb8 {[%clk 0:00:29]}  Bg7 {[%clk 0:00:01]} 46. Rb7+ {[%clk 0:00:28]} 1-0


[Site "https://www.chess.com"]

[Event "Titled Tuesday Blitz February 21 Late 2023"]
[White "Chabris, Christopher"]
[Black "Kielinkei"]
[WhiteFideId "2005263"]
[WhiteElo "2053"]
[BlackElo "2387"]
[Result "0-1"]
[Round "05"]
[TimeControl "180+2"]
[Date "2023.02.21"]
[WhiteClock "0:00:11"]
[BlackClock "0:01:48"]

1. e4 {[%clk 0:02:58]}  Nf6 {[%clk 0:02:59]} 2. e5 {[%clk 0:02:58]}  Nd5 {[%clk 0:03:00]} 3. d4 {[%clk 0:02:58]}  d6 {[%clk 0:03:00]} 4. c4 {[%clk 0:02:56]}  Nb6 {[%clk 0:02:59]} 5. exd6 {[%clk 0:02:56]}  exd6 {[%clk 0:03:00]} 6. Nc3 {[%clk 0:02:54]}  Be7 {[%clk 0:03:01]} 7. Be3 {[%clk 0:02:50]}  O-O {[%clk 0:03:01]} 8. Bd3 {[%clk 0:02:50]}  Bf6 {[%clk 0:02:59]} 9. Nge2 {[%clk 0:02:42]}  Nc6 {[%clk 0:02:54]} 10. a3 {[%clk 0:02:24]}  d5 {[%clk 0:02:51]} 11. c5 {[%clk 0:02:13]}  Nc4 {[%clk 0:02:50]} 12. Bxc4 {[%clk 0:02:11]}  dxc4 {[%clk 0:02:50]} 13. O-O {[%clk 0:01:55]}  Bf5 {[%clk 0:02:37]} 14. d5 {[%clk 0:01:39]}  Ne5 {[%clk 0:02:33]} 15. Bd4 {[%clk 0:01:24]}  Nd3 {[%clk 0:02:29]} 16. Bxf6 {[%clk 0:01:17]}  Qxf6 {[%clk 0:02:28]} 17. b3 {[%clk 0:01:07]}  cxb3 {[%clk 0:02:23]} 18. Qxb3 {[%clk 0:01:05]}  Nxc5 {[%clk 0:02:23]} 19. Qc4 {[%clk 0:00:56]}  b6 {[%clk 0:02:21]} 20. Rfd1 {[%clk 0:00:56]}  Rfe8 {[%clk 0:02:05]} 21. Ng3 {[%clk 0:00:45]}  Bc2 {[%clk 0:01:58]} 22. Rdc1 {[%clk 0:00:29]}  Bd3 {[%clk 0:01:56]} 23. Qg4 {[%clk 0:00:25]}  Nb3 {[%clk 0:01:49]} 24. Nh5 {[%clk 0:00:11]}  Qg6 {[%clk 0:01:48]} 0-1


[Site "https://www.chess.com"]

[Event "Titled Tuesday Blitz February 21 Late 2023"]
[White "Uzcategui Rodriguez, Alejandro"]
[Black "Marin Ramirez, Gerardo"]
[WhiteFideId "3903400"]
[BlackFideId "3901068"]
[WhiteElo "2255"]
[BlackElo "2127"]
[Result "1-0"]
[Round "05"]
[TimeControl "180+2"]
[Date "2023.02.21"]
[WhiteClock "0:00:20"]
[BlackClock "0:00:01"]

1. e4 {[%clk 0:02:54]}  c5 {[%clk 0:02:58]} 2. Nf3 {[%clk 0:02:54]}  d6 {[%clk 0:02:57]} 3. d4 {[%clk 0:02:55]}  cxd4 {[%clk 0:02:57]} 4. Nxd4 {[%clk 0:02:56]}  Nf6 {[%clk 0:02:57]} 5. Nc3 {[%clk 0:02:56]}  a6 {[%clk 0:02:58]} 6. Bc4 {[%clk 0:02:54]}  e6 {[%clk 0:02:57]} 7. Bb3 {[%clk 0:02:54]}  Nbd7 {[%clk 0:02:57]} 8. f4 {[%clk 0:02:52]}  Nc5 {[%clk 0:02:57]} 9. f5 {[%clk 0:02:53]}  Nxb3 {[%clk 0:02:55]} 10. axb3 {[%clk 0:02:52]}  Be7 {[%clk 0:02:55]} 11. Qf3 {[%clk 0:02:50]}  O-O {[%clk 0:02:54]} 12. O-O {[%clk 0:02:49]}  Bd7 {[%clk 0:02:43]} 13. Bg5 {[%clk 0:02:41]}  Qb6 {[%clk 0:02:33]} 14. Be3 {[%clk 0:02:37]}  Qc7 {[%clk 0:02:24]} 15. Rad1 {[%clk 0:02:27]}  e5 {[%clk 0:02:16]} 16. Nde2 {[%clk 0:02:23]}  h6 {[%clk 0:02:13]} 17. g4 {[%clk 0:02:23]}  Bc6 {[%clk 0:02:11]} 18. h4 {[%clk 0:02:23]}  Nh7 {[%clk 0:02:01]} 19. Rd5 {[%clk 0:02:18]}  Bxh4 {[%clk 0:01:56]} 20. g5 {[%clk 0:02:17]}  Bxg5 {[%clk 0:01:56]} 21. Bxg5 {[%clk 0:02:17]}  Nxg5 {[%clk 0:01:55]} 22. Qh5 {[%clk 0:02:17]}  f6 {[%clk 0:01:43]} 23. Kg2 {[%clk 0:02:13]}  Bxd5 {[%clk 0:01:40]} 24. Nxd5 {[%clk 0:02:14]}  Qxc2 {[%clk 0:01:35]} 25. Ne7+ {[%clk 0:02:06]}  Kh8 {[%clk 0:01:28]} 26. Rh1 {[%clk 0:02:05]}  Qxe4+ {[%clk 0:01:26]} 27. Kf2 {[%clk 0:02:04]}  Rac8 {[%clk 0:00:54]} 28. Rh4 {[%clk 0:02:02]}  Qb1 {[%clk 0:00:38]} 29. Qg6 {[%clk 0:01:29]}  Rc7 {[%clk 0:00:15]} 30. Nd5 {[%clk 0:01:21]}  Rc2 {[%clk 0:00:14]} 31. Ne3 {[%clk 0:00:59]}  Rxe2+ {[%clk 0:00:12]} 32. Kxe2 {[%clk 0:00:59]}  Qxb2+ {[%clk 0:00:13]} 33. Kf1 {[%clk 0:00:58]}  Rc8 {[%clk 0:00:12]} 34. Rxh6+ {[%clk 0:00:56]}  gxh6 {[%clk 0:00:11]} 35. Qxf6+ {[%clk 0:00:56]}  Kg8 {[%clk 0:00:10]} 36. Qg6+ {[%clk 0:00:55]}  Kf8 {[%clk 0:00:10]} 37. Qxh6+ {[%clk 0:00:49]}  Ke8 {[%clk 0:00:09]} 38. Qg6+ {[%clk 0:00:44]}  Nf7 {[%clk 0:00:08]} 39. Qg8+ {[%clk 0:00:42]}  Kd7 {[%clk 0:00:06]} 40. Qxf7+ {[%clk 0:00:40]}  Kc6 {[%clk 0:00:07]} 41. Qd5+ {[%clk 0:00:37]}  Kb6 {[%clk 0:00:07]} 42. Qxd6+ {[%clk 0:00:36]}  Ka7 {[%clk 0:00:06]} 43. Nc4 {[%clk 0:00:25]}  Qd4 {[%clk 0:00:04]} 44. Qxd4+ {[%clk 0:00:22]}  exd4 {[%clk 0:00:03]} 45. Ke2 {[%clk 0:00:23]}  Rf8 {[%clk 0:00:02]} 46. Nd6 {[%clk 0:00:23]}  Rxf5 {[%clk 0:00:03]} 47. Nxf5 {[%clk 0:00:23]}  b5 {[%clk 0:00:03]} 48. Nxd4 {[%clk 0:00:24]}  Kb6 {[%clk 0:00:04]} 49. Kd3 {[%clk 0:00:24]}  Kc5 {[%clk 0:00:04]} 50. Kc3 {[%clk 0:00:24]}  a5 {[%clk 0:00:04]} 51. Nc2 {[%clk 0:00:24]}  Kd5 {[%clk 0:00:03]} 52. Nd4 {[%clk 0:00:22]}  Kc5 {[%clk 0:00:03]} 53. Ne6+ {[%clk 0:00:22]}  Kd5 {[%clk 0:00:02]} 54. Nc7+ {[%clk 0:00:22]}  Kc6 {[%clk 0:00:02]} 55. Ne6 {[%clk 0:00:21]}  Kd5 {[%clk 0:00:02]} 56. Nf4+ {[%clk 0:00:20]}  Kc5 {[%clk 0:00:02]} 57. Nd3+ {[%clk 0:00:20]}  Kd5 {[%clk 0:00:01]} 58. Nc1 {[%clk 0:00:20]} 1-0


[Site "https://www.chess.com"]

[Event "Titled Tuesday Blitz February 21 Late 2023"]
[White "Calcada, Lucas Galvan"]
[Black "Delgado Rosas, Fatima Alexandra"]
[WhiteFideId "22746099"]
[BlackFideId "6603963"]
[WhiteElo "1739"]
[BlackElo "1500"]
[Result "0-1"]
[Round "05"]
[TimeControl "180+2"]
[Date "2023.02.21"]
[WhiteClock "0:01:09"]
[BlackClock "0:01:44"]

1. e4 {[%clk 0:03:00]}  Nc6 {[%clk 0:02:56]} 2. d4 {[%clk 0:03:00]}  d5 {[%clk 0:02:56]} 3. e5 {[%clk 0:02:59]}  Bf5 {[%clk 0:02:57]} 4. Nf3 {[%clk 0:02:57]}  e6 {[%clk 0:02:57]} 5. Bd3 {[%clk 0:02:56]}  Nge7 {[%clk 0:02:57]} 6. O-O {[%clk 0:02:54]}  h5 {[%clk 0:02:56]} 7. c4 {[%clk 0:02:52]}  dxc4 {[%clk 0:02:56]} 8. Bxc4 {[%clk 0:02:51]}  Nd5 {[%clk 0:02:52]} 9. Nc3 {[%clk 0:02:51]}  Nb6 {[%clk 0:02:52]} 10. Bb5 {[%clk 0:02:49]}  Bb4 {[%clk 0:02:51]} 11. Be3 {[%clk 0:02:45]}  Bxc3 {[%clk 0:02:50]} 12. bxc3 {[%clk 0:02:44]}  Qd7 {[%clk 0:02:50]} 13. Ng5 {[%clk 0:02:33]}  f6 {[%clk 0:02:43]} 14. Nf3 {[%clk 0:02:31]}  O-O-O {[%clk 0:02:40]} 15. a4 {[%clk 0:02:29]}  a6 {[%clk 0:02:40]} 16. a5 {[%clk 0:02:27]}  Nd5 {[%clk 0:02:36]} 17. Bxc6 {[%clk 0:02:09]}  Qxc6 {[%clk 0:02:37]} 18. c4 {[%clk 0:02:04]}  Qxc4 {[%clk 0:02:13]} 19. Rc1 {[%clk 0:02:04]}  Qd3 {[%clk 0:02:13]} 20. Qxd3 {[%clk 0:01:56]}  Bxd3 {[%clk 0:02:14]} 21. Rfd1 {[%clk 0:01:56]}  Be2 {[%clk 0:02:13]} 22. Rd2 {[%clk 0:01:54]}  Bxf3 {[%clk 0:02:13]} 23. gxf3 {[%clk 0:01:54]}  fxe5 {[%clk 0:02:12]} 24. dxe5 {[%clk 0:01:51]}  Nxe3 {[%clk 0:02:12]} 25. Rxd8+ {[%clk 0:01:50]}  Rxd8 {[%clk 0:02:13]} 26. fxe3 {[%clk 0:01:51]}  Rd5 {[%clk 0:02:13]} 27. f4 {[%clk 0:01:48]}  Rxa5 {[%clk 0:02:13]} 28. Kf2 {[%clk 0:01:48]}  Ra2+ {[%clk 0:02:13]} 29. Kg3 {[%clk 0:01:49]}  g6 {[%clk 0:02:08]} 30. Kh4 {[%clk 0:01:45]}  Rxh2+ {[%clk 0:02:08]} 31. Kg5 {[%clk 0:01:45]}  Re2 {[%clk 0:02:08]} 32. Rc3 {[%clk 0:01:44]}  b5 {[%clk 0:02:07]} 33. Kf6 {[%clk 0:01:44]}  b4 {[%clk 0:02:08]} 34. Rb3 {[%clk 0:01:40]}  Kd7 {[%clk 0:02:07]} 35. Rd3+ {[%clk 0:01:39]}  Kc6 {[%clk 0:02:03]} 36. Kxe6 {[%clk 0:01:40]}  h4 {[%clk 0:02:01]} 37. Ke7 {[%clk 0:01:40]}  h3 {[%clk 0:01:59]} 38. Kf7 {[%clk 0:01:26]}  h2 {[%clk 0:01:58]} 39. Rd1 {[%clk 0:01:25]}  Rxe3 {[%clk 0:01:58]} 40. e6 {[%clk 0:01:25]}  Re4 {[%clk 0:01:51]} 41. e7 {[%clk 0:01:20]}  Rxf4+ {[%clk 0:01:51]} 42. Kxg6 {[%clk 0:01:20]}  Re4 {[%clk 0:01:51]} 43. Kf7 {[%clk 0:01:21]}  Rf4+ {[%clk 0:01:51]} 44. Ke6 {[%clk 0:01:18]}  Re4+ {[%clk 0:01:49]} 45. Kf7 {[%clk 0:01:18]}  a5 {[%clk 0:01:48]} 46. Ke8 {[%clk 0:01:18]}  a4 {[%clk 0:01:47]} 47. Kd8 {[%clk 0:01:16]}  Rxe7 {[%clk 0:01:46]} 48. Kxe7 {[%clk 0:01:16]}  a3 {[%clk 0:01:46]} 49. Rh1 {[%clk 0:01:12]}  a2 {[%clk 0:01:44]} 50. Rc1+ {[%clk 0:01:09]}  Kb6 {[%clk 0:01:44]} 0-1


[Site "https://www.chess.com"]

[Event "Titled Tuesday Blitz February 21 Late 2023"]
[White "Chemin, Justo Reinaldo"]
[Black "Jorajuria Mendoza, Algol"]
[WhiteFideId "2101580"]
[BlackFideId "5128897"]
[WhiteElo "2040"]
[BlackElo "2069"]
[Result "0-1"]
[Round "05"]
[TimeControl "180+2"]
[Date "2023.02.21"]
[WhiteClock "0:00:06"]
[BlackClock "0:00:03"]

1. d4 {[%clk 0:03:00]}  d5 {[%clk 0:02:57]} 2. Nf3 {[%clk 0:03:00]}  Nf6 {[%clk 0:02:56]} 3. Bf4 {[%clk 0:03:00]}  c5 {[%clk 0:02:56]} 4. e3 {[%clk 0:03:00]}  Nc6 {[%clk 0:02:56]} 5. c3 {[%clk 0:03:00]}  Qb6 {[%clk 0:02:53]} 6. Qb3 {[%clk 0:02:59]}  c4 {[%clk 0:02:53]} 7. Qc2 {[%clk 0:02:59]}  Bf5 {[%clk 0:02:53]} 8. Qc1 {[%clk 0:03:00]}  h6 {[%clk 0:02:39]} 9. h3 {[%clk 0:02:58]}  e6 {[%clk 0:02:37]} 10. Nbd2 {[%clk 0:02:58]}  Be7 {[%clk 0:02:27]} 11. Be2 {[%clk 0:02:58]}  O-O {[%clk 0:02:20]} 12. b3 {[%clk 0:02:56]}  cxb3 {[%clk 0:02:19]} 13. axb3 {[%clk 0:02:56]}  Rfc8 {[%clk 0:02:14]} 14. Qb2 {[%clk 0:02:56]}  a6 {[%clk 0:02:08]} 15. O-O {[%clk 0:02:55]}  Na5 {[%clk 0:01:44]} 16. Rfc1 {[%clk 0:02:24]}  Ne4 {[%clk 0:01:39]} 17. b4 {[%clk 0:02:11]}  Nc4 {[%clk 0:01:17]} 18. Nxc4 {[%clk 0:02:08]}  dxc4 {[%clk 0:01:18]} 19. Ne5 {[%clk 0:01:59]}  Nd6 {[%clk 0:01:07]} 20. Qa2 {[%clk 0:01:33]}  Qb5 {[%clk 0:01:01]} 21. f3 {[%clk 0:01:25]}  h5 {[%clk 0:00:52]} 22. e4 {[%clk 0:01:23]}  Bh7 {[%clk 0:00:53]} 23. Qa5 {[%clk 0:01:14]}  Qe8 {[%clk 0:00:45]} 24. Qb6 {[%clk 0:00:45]}  f6 {[%clk 0:00:37]} 25. Ng6 {[%clk 0:00:40]}  Bxg6 {[%clk 0:00:37]} 26. Bxd6 {[%clk 0:00:39]}  Rc6 {[%clk 0:00:37]} 27. Qxb7 {[%clk 0:00:39]}  Bxd6 {[%clk 0:00:37]} 28. b5 {[%clk 0:00:29]}  Rc7 {[%clk 0:00:34]} 29. Qb6 {[%clk 0:00:29]}  Bg3 {[%clk 0:00:22]} 30. bxa6 {[%clk 0:00:22]}  Qc6 {[%clk 0:00:21]} 31. Qxc6 {[%clk 0:00:21]}  Rxc6 {[%clk 0:00:21]} 32. Ra4 {[%clk 0:00:21]}  Raxa6 {[%clk 0:00:19]} 33. Rxa6 {[%clk 0:00:20]}  Rxa6 {[%clk 0:00:20]} 34. Bxc4 {[%clk 0:00:20]}  Ra3 {[%clk 0:00:14]} 35. Bxe6+ {[%clk 0:00:18]}  Bf7 {[%clk 0:00:13]} 36. Bxf7+ {[%clk 0:00:17]}  Kxf7 {[%clk 0:00:14]} 37. c4 {[%clk 0:00:13]}  Rd3 {[%clk 0:00:14]} 38. d5 {[%clk 0:00:12]}  Bf4 {[%clk 0:00:14]} 39. Rb1 {[%clk 0:00:08]}  Be3+ {[%clk 0:00:13]} 40. Kf1 {[%clk 0:00:07]}  Rc3 {[%clk 0:00:11]} 41. Ke2 {[%clk 0:00:07]}  Bc5 {[%clk 0:00:10]} 42. Rb7+ {[%clk 0:00:06]}  Kg6 {[%clk 0:00:10]} 43. Rc7 {[%clk 0:00:06]}  Rxc4 {[%clk 0:00:10]} 44. d6 {[%clk 0:00:06]}  Rc2+ {[%clk 0:00:05]} 45. Kd3 {[%clk 0:00:06]}  Rc1 {[%clk 0:00:05]} 46. Rxc5 {[%clk 0:00:06]}  Rd1+ {[%clk 0:00:03]} 47. Ke3 {[%clk 0:00:06]}  Rxd6 {[%clk 0:00:04]} 48. Kf4 {[%clk 0:00:06]}  Rd7 {[%clk 0:00:02]} 49. g4 {[%clk 0:00:07]}  hxg4 {[%clk 0:00:02]} 50. hxg4 {[%clk 0:00:07]}  Re7 {[%clk 0:00:03]} 51. Rc6 {[%clk 0:00:07]}  Rd7 {[%clk 0:00:03]} 52. g5 {[%clk 0:00:07]}  Re7 {[%clk 0:00:03]} 53. gxf6 {[%clk 0:00:07]}  gxf6 {[%clk 0:00:03]} 54. Rd6 {[%clk 0:00:07]}  Re5 {[%clk 0:00:03]} 55. Rd5 {[%clk 0:00:07]}  Re7 {[%clk 0:00:03]} 56. Rf5 {[%clk 0:00:07]}  Rf7 {[%clk 0:00:02]} 57. e5 {[%clk 0:00:06]}  fxe5+ {[%clk 0:00:03]} 0-1


[Site "https://www.chess.com"]

[Event "Titled Tuesday Blitz February 21 Late 2023"]
[White "Smith, Garrett L"]
[Black "Eliteplayer3"]
[WhiteFideId "2024829"]
[WhiteElo "2047"]
[BlackElo "1962"]
[Result "1-0"]
[Round "05"]
[TimeControl "180+2"]
[Date "2023.02.21"]
[WhiteClock "0:00:14"]
[BlackClock "0:00:33"]

1. e4 {[%clk 0:03:00]}  c6 {[%clk 0:03:00]} 2. d4 {[%clk 0:03:00]}  d5 {[%clk 0:03:00]} 3. e5 {[%clk 0:03:00]}  Bf5 {[%clk 0:02:59]} 4. Nd2 {[%clk 0:03:00]}  e6 {[%clk 0:02:53]} 5. Nb3 {[%clk 0:03:00]}  Ne7 {[%clk 0:02:51]} 6. Nf3 {[%clk 0:02:59]}  Ng6 {[%clk 0:02:50]} 7. Be2 {[%clk 0:02:53]}  Be7 {[%clk 0:02:44]} 8. O-O {[%clk 0:02:52]}  O-O {[%clk 0:02:44]} 9. Bd2 {[%clk 0:02:49]}  Nd7 {[%clk 0:02:44]} 10. c4 {[%clk 0:02:39]}  f6 {[%clk 0:02:43]} 11. cxd5 {[%clk 0:02:32]}  exd5 {[%clk 0:02:41]} 12. exf6 {[%clk 0:02:23]}  Nxf6 {[%clk 0:02:41]} 13. Nc5 {[%clk 0:02:17]}  Bxc5 {[%clk 0:02:38]} 14. dxc5 {[%clk 0:02:18]}  Ne4 {[%clk 0:02:38]} 15. Be3 {[%clk 0:02:17]}  Qc7 {[%clk 0:02:30]} 16. Qd4 {[%clk 0:02:09]}  Nf4 {[%clk 0:02:28]} 17. Bxf4 {[%clk 0:02:00]}  Qxf4 {[%clk 0:02:27]} 18. Rfe1 {[%clk 0:01:48]}  Rae8 {[%clk 0:02:24]} 19. Bd3 {[%clk 0:01:44]}  Qg4 {[%clk 0:02:01]} 20. Re2 {[%clk 0:01:34]}  Re6 {[%clk 0:01:54]} 21. h3 {[%clk 0:01:16]}  Qh5 {[%clk 0:01:49]} 22. Nh2 {[%clk 0:00:47]}  Rg6 {[%clk 0:01:40]} 23. Qe3 {[%clk 0:00:31]}  Bxh3 {[%clk 0:01:36]} 24. Bxe4 {[%clk 0:00:31]}  dxe4 {[%clk 0:01:33]} 25. g3 {[%clk 0:00:29]}  Bg4 {[%clk 0:01:22]} 26. Nxg4 {[%clk 0:00:26]}  Qxg4 {[%clk 0:01:23]} 27. Rae1 {[%clk 0:00:22]}  Re8 {[%clk 0:01:07]} 28. Qb3+ {[%clk 0:00:20]}  Kh8 {[%clk 0:01:06]} 29. Qxb7 {[%clk 0:00:18]}  Rh6 {[%clk 0:01:05]} 30. Rxe4 {[%clk 0:00:14]}  Rh1+ {[%clk 0:00:38]} 31. Kxh1 {[%clk 0:00:14]}  Qf3+ {[%clk 0:00:35]} 32. Kg1 {[%clk 0:00:15]}  Rf8 {[%clk 0:00:36]} 33. R1e2 {[%clk 0:00:14]}  h5 {[%clk 0:00:35]} 34. Re8 {[%clk 0:00:14]}  Qxe2 {[%clk 0:00:33]} 35. Rxe2 {[%clk 0:00:13]}  Kh7 {[%clk 0:00:33]} 36. Qxc6 {[%clk 0:00:14]} 1-0


[Site "https://www.chess.com"]

[Event "Titled Tuesday Blitz February 21 Late 2023"]
[White "Ruiz Aguilar, Pablo Alexander"]
[Black "Stanisz, Patryk"]
[WhiteFideId "4401352"]
[BlackFideId "1123106"]
[WhiteElo "2161"]
[BlackElo "2161"]
[Result "0-1"]
[Round "05"]
[TimeControl "180+2"]
[Date "2023.02.21"]
[WhiteClock "0:00:01"]
[BlackClock "0:00:04"]

1. e4 {[%clk 0:03:00]}  c5 {[%clk 0:03:00]} 2. Nf3 {[%clk 0:03:00]}  Nc6 {[%clk 0:03:00]} 3. d4 {[%clk 0:03:01]}  cxd4 {[%clk 0:03:01]} 4. Nxd4 {[%clk 0:03:01]}  Nf6 {[%clk 0:03:01]} 5. Nc3 {[%clk 0:03:01]}  e5 {[%clk 0:03:01]} 6. Ndb5 {[%clk 0:02:59]}  d6 {[%clk 0:03:02]} 7. Bg5 {[%clk 0:03:00]}  a6 {[%clk 0:03:01]} 8. Na3 {[%clk 0:02:59]}  b5 {[%clk 0:03:00]} 9. Nd5 {[%clk 0:03:00]}  Qa5+ {[%clk 0:02:59]} 10. Bd2 {[%clk 0:02:57]}  Qd8 {[%clk 0:02:58]} 11. Bg5 {[%clk 0:02:55]}  Be7 {[%clk 0:02:58]} 12. Bxf6 {[%clk 0:02:54]}  Bxf6 {[%clk 0:02:58]} 13. c4 {[%clk 0:02:52]}  b4 {[%clk 0:02:56]} 14. Nc2 {[%clk 0:02:52]}  a5 {[%clk 0:02:55]} 15. b3 {[%clk 0:02:48]}  Kf8 {[%clk 0:02:50]} 16. Bd3 {[%clk 0:02:39]}  Bg5 {[%clk 0:02:43]} 17. O-O {[%clk 0:02:39]}  Rb8 {[%clk 0:02:43]} 18. Kh1 {[%clk 0:02:36]}  h5 {[%clk 0:02:42]} 19. f4 {[%clk 0:02:35]}  exf4 {[%clk 0:02:41]} 20. Nxf4 {[%clk 0:02:35]}  Kg8 {[%clk 0:02:23]} 21. Ne3 {[%clk 0:02:33]}  Ne5 {[%clk 0:02:22]} 22. Ned5 {[%clk 0:02:31]}  Bg4 {[%clk 0:02:19]} 23. Qc2 {[%clk 0:02:28]}  Rh6 {[%clk 0:02:12]} 24. h3 {[%clk 0:01:55]}  Be6 {[%clk 0:01:53]} 25. Be2 {[%clk 0:01:50]}  Qd7 {[%clk 0:01:26]} 26. Kh2 {[%clk 0:01:31]}  h4 {[%clk 0:01:11]} 27. Nxe6 {[%clk 0:01:22]}  fxe6 {[%clk 0:01:10]} 28. Nf4 {[%clk 0:01:19]}  Rf6 {[%clk 0:01:05]} 29. Nh5 {[%clk 0:01:18]}  Rf7 {[%clk 0:00:55]} 30. Rxf7 {[%clk 0:00:59]}  Qxf7 {[%clk 0:00:56]} 31. Qd1 {[%clk 0:00:50]}  Rf8 {[%clk 0:00:48]} 32. Qxd6 {[%clk 0:00:44]}  Bf4+ {[%clk 0:00:28]} 33. Nxf4 {[%clk 0:00:37]}  Qxf4+ {[%clk 0:00:29]} 34. Kh1 {[%clk 0:00:37]}  Qxe4 {[%clk 0:00:27]} 35. Qxe6+ {[%clk 0:00:33]}  Kh8 {[%clk 0:00:28]} 36. Rf1 {[%clk 0:00:19]}  Rxf1+ {[%clk 0:00:22]} 37. Bxf1 {[%clk 0:00:19]}  Qe1 {[%clk 0:00:16]} 38. Qf5 {[%clk 0:00:15]}  g5 {[%clk 0:00:11]} 39. Kh2 {[%clk 0:00:13]}  Qg3+ {[%clk 0:00:07]} 40. Kg1 {[%clk 0:00:13]}  Qe3+ {[%clk 0:00:03]} 41. Qf2 {[%clk 0:00:13]}  Qxf2+ {[%clk 0:00:02]} 42. Kxf2 {[%clk 0:00:12]}  Kg7 {[%clk 0:00:02]} 43. Ke3 {[%clk 0:00:12]}  Kf6 {[%clk 0:00:03]} 44. Kd4 {[%clk 0:00:07]}  g4 {[%clk 0:00:02]} 45. hxg4 {[%clk 0:00:06]}  Nxg4 {[%clk 0:00:03]} 46. Kc5 {[%clk 0:00:04]}  Ne3 {[%clk 0:00:03]} 47. Be2 {[%clk 0:00:01]}  Nxg2 {[%clk 0:00:04]} 0-1


[Site "https://www.chess.com"]

[Event "Titled Tuesday Blitz February 21 Late 2023"]
[White "Oliveira, Tiago Batista"]
[Black "rikchessmx"]
[WhiteFideId "2108291"]
[WhiteElo "1991"]
[BlackElo "2290"]
[Result "0-1"]
[Round "05"]
[TimeControl "180+2"]
[Date "2023.02.21"]
[WhiteClock "0:00:10"]
[BlackClock "0:01:23"]

1. d4 {[%clk 0:02:59]}  Nf6 {[%clk 0:02:59]} 2. c4 {[%clk 0:02:59]}  e6 {[%clk 0:03:00]} 3. Nf3 {[%clk 0:02:59]}  c5 {[%clk 0:03:00]} 4. d5 {[%clk 0:02:59]}  b5 {[%clk 0:03:00]} 5. cxb5 {[%clk 0:02:59]}  exd5 {[%clk 0:02:59]} 6. g3 {[%clk 0:02:53]}  Bb7 {[%clk 0:02:59]} 7. Bg2 {[%clk 0:02:53]}  Be7 {[%clk 0:02:59]} 8. O-O {[%clk 0:02:53]}  Qb6 {[%clk 0:02:59]} 9. a4 {[%clk 0:02:36]}  a6 {[%clk 0:02:58]} 10. bxa6 {[%clk 0:02:34]}  Nxa6 {[%clk 0:02:58]} 11. Na3 {[%clk 0:02:33]}  O-O {[%clk 0:02:56]} 12. Nb5 {[%clk 0:02:31]}  Nb4 {[%clk 0:02:54]} 13. Bf4 {[%clk 0:02:25]}  Nh5 {[%clk 0:02:46]} 14. Bc7 {[%clk 0:02:21]}  Qc6 {[%clk 0:02:45]} 15. Ne5 {[%clk 0:02:20]}  Qe6 {[%clk 0:02:34]} 16. e4 {[%clk 0:01:46]}  d4 {[%clk 0:02:27]} 17. Qxh5 {[%clk 0:01:46]}  Bc6 {[%clk 0:02:21]} 18. Nxc6 {[%clk 0:01:25]}  dxc6 {[%clk 0:02:16]} 19. Na3 {[%clk 0:01:13]}  Rxa4 {[%clk 0:02:15]} 20. Rac1 {[%clk 0:00:59]}  Qb3 {[%clk 0:02:12]} 21. Qe2 {[%clk 0:00:42]}  d3 {[%clk 0:02:11]} 22. Qd2 {[%clk 0:00:40]}  Na2 {[%clk 0:02:01]} 23. Rb1 {[%clk 0:00:36]}  c4 {[%clk 0:02:01]} 24. Be5 {[%clk 0:00:36]}  Rd8 {[%clk 0:01:50]} 25. f4 {[%clk 0:00:32]}  Bc5+ {[%clk 0:01:45]} 26. Kh1 {[%clk 0:00:32]}  f6 {[%clk 0:01:44]} 27. Bc3 {[%clk 0:00:32]}  Nxc3 {[%clk 0:01:41]} 28. Qxc3 {[%clk 0:00:27]}  Qxc3 {[%clk 0:01:41]} 29. bxc3 {[%clk 0:00:27]}  Rxa3 {[%clk 0:01:40]} 30. e5 {[%clk 0:00:28]}  Rxc3 {[%clk 0:01:39]} 31. Bxc6 {[%clk 0:00:27]}  d2 {[%clk 0:01:38]} 32. e6 {[%clk 0:00:27]}  Kf8 {[%clk 0:01:36]} 33. Rbd1 {[%clk 0:00:25]}  Rc2 {[%clk 0:01:32]} 34. f5 {[%clk 0:00:24]}  c3 {[%clk 0:01:32]} 35. Ba4 {[%clk 0:00:14]}  Ra2 {[%clk 0:01:29]} 36. Ra1 {[%clk 0:00:12]}  Rxa4 {[%clk 0:01:23]} 37. Rxa4 {[%clk 0:00:11]}  c2 {[%clk 0:01:24]} 38. Re4 {[%clk 0:00:10]}  d1=Q {[%clk 0:01:23]} 0-1


[Site "https://www.chess.com"]